fUSD/lending_fUSD_20250804
["ID","MTS","AMOUNT","RATE_DAILY","PERIOD"]
[377313718,1754338232295,-214.28073721,0.00038661,2]
[377313719,1754338232306,-215.61,0.0003981,2]
[377313720,1754338232316,-151.0,0.0003999,14]
[377313721,1754338232325,-151.0,0.0003999,14]
[377313722,1754338232335,-151.0,0.0003999,14]
[377313723,1754338232344,-151.0,0.0003999,14]
[377313724,1754338232354,-151.0,0.0003999,14]
[377313725,1754338232363,-204.451374,0.0003999,14]
[377313726,1754338232373,-204.451374,0.0003999,14]
[377313727,1754338232383,-169.753278,0.0003999,14]
[377313728,1754338232393,-169.753278,0.0003999,14]
[377313729,1754338232403,-258.995046,0.0003999,14]
[377313730,1754338232412,-258.995046,0.0003999,14]
[377313731,1754338232422,-151.0,0.0003999,14]
[377313732,1754338232431,-985.937816,0.0003999,14]
[377313733,1754338232441,-985.937816,0.0003999,14]
[377313734,1754338232451,-151.0,0.0004,14]
[377313735,1754338232460,-151.0,0.0004,14]
[377313736,1754338232469,-163.213804,0.0004,14]
[377313737,1754338232480,-257.744352,0.0004,14]
[377313738,1754338232489,-151.0,0.0004,14]
[377313739,1754338232499,-204.451374,0.0004,14]
[377313740,1754338232508,-204.451374,0.0004,14]
[377313741,1754338232518,-169.753278,0.0004,14]
[377313742,1754338232527,-169.753278,0.0004,14]
[377313743,1754338232537,-258.995046,0.0004,14]
[377313744,1754338232546,-258.995046,0.0004,14]
[377313745,1754338232556,-151.0,0.0004,14]
[377313746,1754338232565,-985.937816,0.0004,14]
[377313747,1754338232578,-985.937816,0.0004,14]
[377313748,1754338232588,-4179.0,0.000403,3]
[377313749,1754338232598,-151.0,0.0004104,14]
[377313750,1754338232611,-171.445283,0.0004104,14]
[377313751,1754338232621,-204.451374,0.0004104,14]
[377313752,1754338232630,-204.451374,0.0004104,14]
[377313753,1754338232641,-169.753278,0.0004104,14]
[377313754,1754338232650,-169.753278,0.0004104,14]
[377313755,1754338232660,-985.937816,0.0004104,14]
[377313756,1754338232670,-985.937816,0.0004104,14]
[377313757,1754338232680,-258.995046,0.00041076,14]
[377313758,1754338232691,-258.995046,0.00041076,14]
[377313759,1754338232700,-245.0,0.00041076,14]
[377313760,1754338232710,-258.995046,0.00041086,14]
[377313761,1754338232720,-258.995046,0.00041086,14]
[377313762,1754338232730,-200.0,0.00041096,20]
[377313763,1754338232740,-258.995046,0.00041096,14]
[377313764,1754338232749,-258.995046,0.00041096,14]
[377313765,1754338232760,-5510.0,0.000413,5]
[377313766,1754338232770,-215.61,0.0004154,120]
[377313767,1754338232780,-320.0,0.00042386,120]
[377313768,1754338232790,-151.0,0.00042424,14]
[377313769,1754338232800,-204.451374,0.00042424,14]
[377313770,1754338232810,-204.451374,0.00042424,14]
[377313771,1754338232820,-169.753278,0.00042424,14]
[377313772,1754338232831,-169.753278,0.00042424,14]
[377313773,1754338232840,-985.937816,0.00042424,14]
[377313774,1754338232850,-985.937816,0.00042424,14]
[377313775,1754338232864,-180.96,0.00042478,2]
[377313776,1754338232874,-258.995046,0.00042528,14]
[377313777,1754338232885,-258.995046,0.00042528,14]
[377313778,1754338232895,-1000.0,0.00042689,2]
[377313779,1754338232904,-750.99,0.00042836,2]
[377313780,1754338232914,-370.76,0.00043066,2]
[377313781,1754338232924,-215.61,0.00043271,120]
[377313782,1754338232934,-150.94,0.00043551,120]
[377313783,1754338232946,-156.89,0.00043587,2]
[377313784,1754338232957,-156.89,0.00043613,2]
[377313785,1754338232967,-156.89,0.00043638,2]
[377313786,1754338232977,-457.2201239,0.00043639,2]
[377313787,1754338232986,-156.89,0.00043664,2]
[377313788,1754338232996,-156.89,0.0004369,2]
[377313789,1754338233005,-156.89,0.00043715,2]
[377313790,1754338233016,-156.89,0.00043741,2]
[377313791,1754338233025,-156.89,0.00043767,2]
[377313792,1754338233035,-200.3,0.00043782,5]
[377313793,1754338233045,-156.89,0.00043792,2]
[377313794,1754338233054,-156.89,0.00043818,2]
[377313795,1754338233063,-250.0,0.00043842,120]
[377313796,1754338233073,-156.89,0.00043844,2]
[377313797,1754338233084,-156.89,0.00043869,2]
[377313798,1754338233094,-156.89,0.00043895,2]
[377313799,1754338233104,-156.89,0.00043921,2]
[377313800,1754338233114,-156.89,0.00043946,2]
[377313801,1754338233124,-156.89,0.00043972,2]
[377313802,1754338233134,-151.0,0.0004398,14]
[377313803,1754338233144,-204.451374,0.0004398,14]
[377313804,1754338233154,-204.451374,0.0004398,14]
[377313805,1754338233164,-169.753278,0.0004398,14]
[377313806,1754338233173,-154.02723087,0.0004398,14]
[377313807,1754338233195,-15.72604713,0.0004398,14]
[377313808,1754338233204,-258.995046,0.0004398,14]
[377313809,1754338233214,-258.995044,0.0004398,14]
[377313810,1754338233223,-985.937816,0.0004398,14]
[377313811,1754338233233,-985.937816,0.0004398,14]
[377313812,1754338233243,-68.75201604,0.00043989,2]
[377313813,1754338233255,-145.61798396,0.00043989,2]
[377313814,1754338233264,-151.0,0.0004399,14]
[377313815,1754338233274,-204.451374,0.0004399,14]
[377313816,1754338233284,-204.451374,0.0004399,14]
[377313817,1754338233293,-169.753278,0.0004399,14]
[377313818,1754338233303,-169.753278,0.0004399,14]
[377313819,1754338233313,-376.74771204,0.0004399,14]
[377313820,1754338233338,-609.19010396,0.0004399,14]
[377313821,1754338233347,-985.937816,0.0004399,14]
[377313822,1754338233357,-156.89,0.00043997,2]
[377313823,1754338233367,-151.0,0.00044,14]
[377313824,1754338233377,-204.451374,0.00044,14]
[377313825,1754338233387,-204.451372,0.00044,14]
[377313826,1754338233397,-169.753278,0.00044,14]
[377313827,1754338233407,-169.753288,0.00044,14]
[377313828,1754338233418,-985.937816,0.00044,14]
[377313829,1754338233428,-675.80921919,0.00044,14]
[377313830,1754338233488,-310.12858681,0.00044,14]
[377313831,1754338233506,-89.94042973,0.00044014,2]
[377313832,1754338233519,-23810.05957027,0.00044014,2]
[377313833,1754338233530,-470.58,0.00044014,120]
[377313834,1754338233540,-1000.0,0.00044014,2]
[377313835,1754338233551,-175.0,0.00044014,7]
[377313836,1754338233564,-156.89,0.00044023,2]
[377313837,1754338233575,-165.79,0.00044129,2]
[377313838,1754338233584,-666.0,0.00044176,3]
[377313839,1754338233594,-5387.06,0.00044409,7]
[377313840,1754338233605,-501.4006779,0.00044471,120]
[377313841,1754338233620,-161.45,0.00044521,2]
[377313842,1754338233634,-180.96,0.00044602,2]
[377313843,1754338233644,-2434.87,0.00044989,120]
[377313844,1754338233654,-466.7,0.00044992,30]
[377313845,1754338233664,-818.03,0.00044992,30]
[377313846,1754338233674,-1000.0,0.00045,120]
[377313847,1754338233684,-154.0,0.00045,120]
[377313848,1754338233693,-154.0,0.00045,120]
[377313849,1754338233703,-215.61,0.00045001,120]
[377313850,1754338233714,-761.79,0.00045129,30]
[377313851,1754338233724,-717.86,0.00045129,30]
[377313852,1754338233733,-358.79,0.00045129,30]
[377313853,1754338233743,-214.37,0.00045359,2]
[377313854,1754338233752,-167.96,0.00045502,2]
[377313855,1754338233762,-1562.35,0.00045864,120]
[377313856,1754338233772,-1000.0,0.00046,120]
[377313857,1754338233781,-171.3,0.00046307,2]
[377313858,1754338233791,-2434.87,0.00046359,120]
[377313859,1754338233801,-154.0,0.000465,120]
[377313860,1754338233810,-1975.0,0.000466,2]
[377313861,1754338233820,-1000.0,0.000466,2]
[377313862,1754338233831,-200.0,0.00046632,2]
[377313863,1754338233840,-154.0,0.000467,120]
[377313864,1754338233850,-180.96,0.00046725,2]
[377313865,1754338233859,-214.37,0.00046729,2]
[377313866,1754338233870,-215.61,0.00046731,120]
[377313867,1754338233880,-1000.0,0.00047,120]
[377313868,1754338233889,-888.0,0.000471,3]
[377313869,1754338233899,-508.0,0.00047162,10]
[377313870,1754338233908,-150.43561814,0.00047175,120]
[377313871,1754338233918,-500.0,0.00047275,10]
[377313872,1754338233928,-150.43561814,0.00047548,120]
[377313873,1754338233938,-320.0,0.00047684,120]
[377313874,1754338233947,-2434.87,0.00047729,120]
[377313875,1754338233957,-432.75166438,0.00047758,120]
[377313876,1754338233968,-150.0,0.00047775,3]
[377313877,1754338233977,-508.0,0.00047875,10]
[377313878,1754338233987,-150.43561814,0.0004792,120]
[377313879,1754338233997,-1000.0,0.00048,30]
[377313880,1754338234007,-1000.0,0.00048,30]
[377313881,1754338234018,-1000.0,0.00048,30]
[377313882,1754338234027,-1000.0,0.00048,30]
[377313883,1754338234037,-571.0,0.00048,30]
[377313884,1754338234047,-1000.0,0.00048,120]
[377313885,1754338234057,-1210.0,0.00048,25]
[377313886,1754338234067,-1000.0,0.00048025,2]
[377313887,1754338234076,-214.37,0.00048099,2]
[377313888,1754338234086,-154.0,0.000481,120]
[377313889,1754338234095,-1000.0,0.00048219,120]
[377313890,1754338234105,-1000.0,0.00048219,120]
[377313891,1754338234114,-1000.0,0.00048219,120]
[377313892,1754338234124,-456.98,0.00048219,120]
[377313893,1754338234134,-888.0,0.00048228,3]
[377313894,1754338234145,-150.43561814,0.00048293,120]
[377313895,1754338234154,-175.30864197,0.000483,120]
[377313896,1754338234164,-260.860185,0.000484,74]
[377313897,1754338234173,-154.0,0.000484,120]
[377313898,1754338234184,-2967.1735847,0.00048438,10]
[377313899,1754338234193,-215.61,0.00048462,120]
[377313900,1754338234203,-282.9,0.00048472,14]
[377313901,1754338234213,-508.0,0.00048588,10]
[377313902,1754338234223,-157.19,0.000486,2]
[377313903,1754338234232,-150.43561814,0.00048665,120]
[377313904,1754338234242,-151.0,0.00048748,120]
[377313905,1754338234253,-3737.80279805,0.000488,120]
[377313906,1754338234263,-180.96,0.00048849,2]
[377313907,1754338234274,-888.0,0.00048877,120]
[377313908,1754338234284,-1000.0,0.00049,120]
[377313909,1754338234294,-150.43561814,0.00049038,120]
[377313910,1754338234303,-2434.87,0.00049099,120]
[377313911,1754338234313,-1975.52577121,0.000493,2]
[377313912,1754338234323,-1000.0,0.000493,2]
[377313913,1754338234333,-955.0,0.000493,2]
[377313914,1754338234343,-508.0,0.00049302,11]
[377313915,1754338234353,-1776.0,0.0004934,3]
[377313916,1754338234362,-150.43561814,0.0004941,120]
[377313917,1754338234372,-214.37,0.00049469,2]
[377313918,1754338234382,-150.0,0.0004947,2]
[377313919,1754338234392,-1000.0,0.00049475,30]
[377313920,1754338234402,-1000.0,0.00049574,30]
[377313921,1754338234412,-154.0,0.000496,120]
[377313922,1754338234423,-160.0,0.00049624,2]
[377313923,1754338234433,-863.40942438,0.00049639,2]
[377313924,1754338234442,-2500.0,0.00049674,2]
[377313925,1754338234452,-1000.0,0.00049674,2]
[377313926,1754338234461,-162.85197107,0.00049697,28]
[377313927,1754338234470,-7249.83659395,0.00049697,15]
[377313928,1754338234481,-663.25749317,0.000497,15]
[377313929,1754338234491,-1000.0,0.00049702,30]
[377313930,1754338234500,-150.0,0.00049725,7]
[377313931,1754338234510,-20462.163715,0.00049781,4]
[377313932,1754338234521,-150.43561814,0.00049783,120]
[377313933,1754338234532,-20462.163715,0.00049787,4]
[377313934,1754338234542,-2669.967,0.0004979,2]
[377313935,1754338234553,-2393.7507,0.0004979,120]
[377313936,1754338234563,-20462.163715,0.0004979,4]
[377313937,1754338234859,-500.0,0.00049791,90]
[377313938,1754338234870,-151.0,0.00049791,7]
[377313939,1754338234879,-151.0,0.00049791,7]
[377313940,1754338234889,-151.0,0.00049791,7]
[377313941,1754338234900,-151.0,0.00049791,7]
[377313942,1754338234910,-151.0,0.00049791,7]
[377313943,1754338234919,-151.0,0.00049791,7]
[377313944,1754338234929,-151.0,0.00049791,7]
[377313945,1754338234938,-151.0,0.00049791,7]
[377313946,1754338234948,-151.0,0.00049791,7]
[377313947,1754338234957,-151.0,0.00049791,7]
[377313948,1754338234967,-151.0,0.00049791,7]
[377313949,1754338234977,-151.0,0.00049791,7]
[377313950,1754338234987,-151.0,0.00049791,7]
[377313951,1754338234996,-151.0,0.00049791,7]
[377313952,1754338235006,-246.8319358,0.00049791,7]
[377313953,1754338235016,-151.0,0.00049791,7]
[377313954,1754338235026,-151.0,0.00049791,7]
[377313955,1754338235036,-151.0,0.00049791,7]
[377313956,1754338235046,-151.0,0.00049791,7]
[377313957,1754338235056,-151.0,0.00049791,7]
[377313958,1754338235065,-151.0,0.00049791,7]
[377313959,1754338235075,-151.0,0.00049791,7]
[377313960,1754338235084,-151.0,0.00049791,7]
[377313961,1754338235094,-151.0,0.00049791,7]
[377313962,1754338235103,-151.0,0.00049791,7]
[377313963,1754338235113,-156.587,0.00049791,7]
[377313964,1754338235122,-191.41277261,0.00049791,7]
[377313965,1754338235134,-242.48320087,0.00049791,7]
[377313966,1754338235144,-328.09592091,0.00049791,7]
[377313967,1754338235153,-151.0,0.00049791,7]
[377313968,1754338235163,-151.0,0.00049791,7]
[377313969,1754338235173,-151.0,0.00049791,7]
[377313970,1754338235182,-5391.81600769,0.00049791,7]
[377313971,1754338235192,-151.0,0.00049791,7]
[377313972,1754338235201,-5591.31319997,0.00049791,7]
[377313973,1754338235211,-151.0,0.00049791,7]
[377313974,1754338235221,-500.0,0.00049791,7]
[377313975,1754338235231,-151.0,0.00049791,7]
[377313976,1754338235240,-5798.19178837,0.00049791,7]
[377313977,1754338235249,-500.0,0.00049791,7]
[377313978,1754338235259,-151.0,0.00049791,7]
[377313979,1754338235268,-6012.72488454,0.00049791,7]
[377313980,1754338235278,-500.0,0.00049791,7]
[377313981,1754338235288,-151.0,0.00049791,7]
[377313982,1754338235297,-6235.19570527,0.00049791,7]
[377313983,1754338235307,-500.0,0.00049791,7]
[377313984,1754338235317,-151.0,0.00049791,7]
[377313985,1754338235326,-6465.89794637,0.00049791,7]
[377313986,1754338235336,-151.0,0.00049791,7]
[377313987,1754338235349,-6705.13617038,0.00049791,7]
[377313988,1754338235359,-500.0,0.00049791,7]
[377313989,1754338235368,-151.0,0.00049791,7]
[377313990,1754338235378,-6953.22620868,0.00049791,7]
[377313991,1754338235387,-500.0,0.00049791,7]
[377313992,1754338235397,-7210.49557841,0.00049791,7]
[377313993,1754338235407,-500.0,0.00049791,7]
[377313994,1754338235416,-7477.28391481,0.00049791,7]
[377313995,1754338235427,-500.0,0.00049791,7]
[377313996,1754338235438,-600.0,0.00049791,7]
[377313997,1754338235448,-500.0,0.00049791,7]
[377313998,1754338235457,-649.41621644,0.00049791,7]
[377313999,1754338235467,-600.0,0.00049791,7]
[377314000,1754338235477,-513.99671889,0.00049791,7]
[377314001,1754338235486,-430.05473421,0.00049791,7]
[377314002,1754338235496,-199.5,0.00049791,7]
[377314003,1754338235505,-500.0,0.00049791,7]
[377314004,1754338235515,-1173.46680396,0.00049792,7]
[377314005,1754338235525,-200.0,0.00049792,7]
[377314006,1754338235535,-38550.27504066,0.000498,10]
[377314007,1754338235549,-4740.85706644,0.000498,10]
[377314008,1754338235645,-333.97727723,0.000498,10]
[377314009,1754338235658,-295.99999997,0.000498,10]
[377314010,1754338235817,-500.0,0.00049791,7]
[377314011,1754338235828,-4019.27949854,0.000498,10]
[377314012,1754338235839,-300.0,0.000498,18]
[377314013,1754338235849,-2072.44626956,0.00049802,4]
[377314014,1754338235861,-1359.06667435,0.00049802,4]
[377314096,1754338238930,-443.13092382,0.000471,3]
[377314098,1754338238943,-444.86907618,0.000471,3]
[377314100,1754338238952,-543.87228088,0.0004934,3]
[377314102,1754338238968,-394.61279542,0.0004934,3]
[377314105,1754338238980,-837.5149237,0.0004934,3]
[377314107,1754338238990,-220.8858098,0.00049791,7]
[377314109,1754338239006,-279.1141902,0.00049791,7]
[377314111,1754338239016,-138.70623141,0.00049791,7]
[377314114,1754338239027,-361.29376859,0.00049791,7]
[377314116,1754338239038,-219.21123141,0.00049791,7]
[377314118,1754338239050,-280.78876859,0.00049791,7]
[377314120,1754338239060,-500.0,0.00049791,7]
[377314122,1754338239070,-18.98763793,0.00049791,7]
[377314124,1754338239082,-481.01236207,0.00049791,7]
[377314126,1754338239091,-89.37988064,0.00049791,7]
[377314128,1754338239104,-410.62011936,0.00049791,7]
[377314130,1754338239114,-500.0,0.00049791,7]
[377314132,1754338239124,-195.56868656,0.00049791,7]
[377314134,1754338239136,-304.43131344,0.00049791,7]
[377314136,1754338239146,-500.0,0.00049791,7]
[377314138,1754338239156,-300.0,0.00049791,7]
[377314140,1754338239166,-30.16868656,0.00049791,7]
[377314143,1754338239179,-469.83131344,0.00049791,7]
[377314144,1754338239188,-500.0,0.00049791,7]
[377314145,1754338239198,-226.09732477,0.00049791,7]
[377314146,1754338239210,-73.90267523,0.00049791,7]
[377314147,1754338239220,-500.0,0.00049791,7]
[377314148,1754338239230,-500.0,0.00049791,7]
[377314149,1754338239240,-500.0,0.00049791,7]
[377314150,1754338239250,-300.0,0.00049791,7]
[377314151,1754338239260,-500.0,0.00049791,7]
[377314152,1754338239270,-76.6246282,0.00049802,4]
[377314153,1754338239282,-1253.16907793,0.00049802,4]
[377314270,1754338240079,-454.954504,0.00049791,7]
[377314272,1754338240090,-45.045496,0.00049791,7]
[377314274,1754338240101,-266.29315748,0.00049802,4]
[377314276,1754338240112,-541.97450378,0.00049802,4]
[377314286,1754338240209,-1476.20447534,0.00049802,4]
[377314288,1754338240221,-614.28869589,0.00049802,4]
[377314356,1754338240907,-500.0,0.00049791,7]
[377314357,1754338240918,-500.0,0.00049791,7]
[377314359,1754338240928,-159.27,0.00049791,7]
[377314362,1754338240939,-340.73,0.00049791,7]
[377314364,1754338240949,-4292.75659248,0.00049802,4]
[377314367,1754338240976,-500.0,0.00049791,7]
[377314369,1754338240985,-107.9387964,0.00049802,4]
[377314371,1754338240996,-4480.0738492,0.00049802,4]
[377314516,1754338242517,-823.53,0.00049796,120]
[377314518,1754338242527,-13926.08736002,0.00049802,4]
[377314520,1754338242538,-8328.58999977,0.00049802,4]
[377314532,1754338242645,-282.017736,0.00049802,4]
[377314564,1754338242995,-110.46519587,0.00049802,4]
[377314567,1754338245558,-151.0,0.00033621,2]
[377314568,1754338245569,-150.0,0.00049508,7]
[377314569,1754338245579,-1736.33041783,0.00049802,4]
[377314570,1754338245589,-163.96,0.00049803,2]
[377314571,1754338245599,-1100.42377617,0.00049808,2]
[377314572,1754338245610,-1250.3199832,0.00049812,2]
[377314573,1754338245624,-1979.35589241,0.00049812,2]
[377314574,1754338245677,-160.19502559,0.00049812,2]
[377314575,1754338245688,-4042.79968641,0.00049812,2]
[377314576,1754338245700,-6113.3575,0.00049812,2]
[377314577,1754338245773,-605.41112886,0.00049812,2]
[377314578,1754338245785,-22920.44334075,0.00049812,2]
[377314603,1754338383563,162.18,0.00013699,2]
[377314604,1754338384009,162.18,0.00024907,2]
[377314654,1754338802143,1918.96,0.0002834,120]
[377314656,1754338818051,-349.765,0.00025764,2]
[377314674,1754339125237,1045.92872,0.000175,2]
[377314675,1754339125263,9054.96641385,0.000175,2]
[377314676,1754339141468,3218.21409791,0.000249,2]
[377314677,1754339154544,504.0,0.00015,10]
[377314678,1754339167316,686.66093709,0.00030136,120]
[377314681,1754339250195,194.31927988,0.00025,2]
[377314683,1754339288603,3666.52670238,0.0002,20]
[377314691,1754339319277,8409.44459192,0.000151,2]
[377314698,1754339361163,-1066.96142875,0.0003,10]
[377314699,1754339361198,-644.65602621,0.0003013,60]
[377314700,1754339361221,-250.0,0.00033143,2]
[377314701,1754339361245,-389.23692617,0.00034651,2]
[377314702,1754339361271,-618.09659619,0.0003475,2]
[377314703,1754339361296,-1000.0,0.00035,10]
[377314704,1754339361319,-42.68111296,0.00035093,7]
[377314708,1754339396307,161.73,0.00013699,2]
[377314727,1754339431738,-161.73,0.00026027,2]
[377314728,1754339431748,-238.27,0.00035093,7]
[377314729,1754339431779,-751.28290004,0.00035093,7]
[377314731,1754339431789,-744.1,0.00036093,15]
[377314732,1754339431799,-439.783834,0.0003803,2]
[377314733,1754339431809,-1600.0,0.0003822,3]
[377314734,1754339431819,-200.0,0.0003822,30]
[377314735,1754339431829,-300.0,0.0003822,3]
[377314736,1754339431838,-156.88450288,0.00038221,2]
[377314737,1754339431848,-6248.78576192,0.00038221,2]
[377314738,1754339431858,-8028.9340693,0.00038321,7]
[377314739,1754339431868,-3757.48258702,0.00038321,7]
[377314740,1754339431878,-23215.11421416,0.00038321,2]
[377314741,1754339431887,-2289.36473249,0.00038321,10]
[377314742,1754339431897,-1000.0,0.00038321,10]
[377314743,1754339431907,-4992.45530491,0.00038321,2]
[377314744,1754339431916,-14995.02458424,0.00038321,3]
[377314745,1754339431926,-25704.47092434,0.00038321,7]
[377314746,1754339431936,-10657.64038446,0.00038321,2]
[377314747,1754339431945,-15048.10270247,0.00038321,2]
[377314748,1754339431955,-491.60430917,0.00038321,3]
[377314749,1754339431965,-6000.0,0.00038321,2]
[377314750,1754339431974,-1481.44501991,0.00038321,2]
[377314751,1754339431985,-3079.68059975,0.00038321,2]
[377314752,1754339431995,-3349.7824339,0.00038321,2]
[377314753,1754339432004,-7827.27146799,0.00038321,2]
[377314754,1754339432014,-374.12499089,0.00038321,120]
[377314755,1754339432024,-7632.54809146,0.00038321,2]
[377314756,1754339432033,-1717.16931209,0.00038321,2]
[377314757,1754339432043,-325.0342,0.00038321,2]
[377314758,1754339432052,-6735.15334086,0.00038321,7]
[377314759,1754339432062,-1932.77931383,0.00038321,5]
[377314760,1754339432071,-24971.07128686,0.00038321,5]
[377314761,1754339432081,-841.59890878,0.00038321,3]
[377314762,1754339432091,-161.73,0.00038356,2]
[377314763,1754339432102,-3516.31045501,0.00038748,31]
[377314765,1754339432111,-3031.52888363,0.0003889,30]
[377314766,1754339432121,-213.90813862,0.000389,39]
[377314767,1754339432134,-21418.66597577,0.00039,2]
[377314768,1754339432144,-156.88450279,0.00039519,2]
[377314769,1754339432154,-6248.78576185,0.00039685,2]
[377314770,1754339432163,-10574.06949948,0.00039999,2]
[377314771,1754339432175,-1000.0,0.0004,15]
[377314772,1754339432184,-156.88450279,0.00040816,120]
[377314773,1754339432194,-271.0,0.00040998,5]
[377314774,1754339432204,-169.0,0.00041,90]
[377314775,1754339432214,-368.23073988,0.00041,120]
[377314776,1754339432223,-396.66825978,0.00041,120]
[377314777,1754339432232,-234.21468827,0.00041,120]
[377314778,1754339432242,-517.52943248,0.00041,120]
[377314779,1754339432252,-1000.0,0.00041095,120]
[377314780,1754339432262,-200.0,0.00041096,20]
[377314781,1754339432272,-400.0,0.00041123,120]
[377314782,1754339432282,-6248.78576185,0.0004115,15]
[377314783,1754339432292,-310.86,0.00041776,120]
[377314784,1754339432302,-299.13496466,0.00042,120]
[377314785,1754339432312,-566.13309864,0.00042,30]
[377314786,1754339432322,-480.43156679,0.00042,30]
[377314787,1754339432332,-835.37813002,0.00042,120]
[377314788,1754339432342,-280.0,0.00042042,30]
[377314789,1754339432351,-582.0,0.000421,3]
[377314790,1754339432362,-156.88450279,0.00042114,120]
[377314791,1754339432372,-252.82980262,0.00042187,2]
[377314792,1754339432381,-160.0,0.00042597,2]
[377314793,1754339432390,-1805.66,0.00042604,2]
[377314794,1754339432399,-6248.78576185,0.00042614,15]
[377314795,1754339432408,-156.88450279,0.00043412,120]
[377314796,1754339432417,-310.86,0.00043506,120]
[377314797,1754339432427,-1008.87173319,0.000437,120]
[377314798,1754339432436,-485.87210389,0.000438,30]
[377314799,1754339432445,-1354.9921028,0.000438,119]
[377314800,1754339432454,-182.23524158,0.00043836,2]
[377314801,1754339432463,-6248.78576185,0.00044078,15]
[377314802,1754339432472,-152.0,0.00044273,3]
[377314803,1754339432481,-384.05609736,0.00044367,2]
[377314804,1754339432490,-175.0,0.00044473,7]
[377314805,1754339432499,-156.88450279,0.00044709,120]
[377314806,1754339432509,-152.0,0.00045,120]
[377314807,1754339432518,-1007.36545693,0.00045,120]
[377314808,1754339432527,-1408.0,0.00045134,120]
[377314809,1754339432537,-310.86,0.00045237,120]
[377314810,1754339432547,-169.68,0.0004553,2]
[377314811,1754339432556,-6248.78576185,0.00045543,15]
[377314812,1754339432566,-40010.18079352,0.000459,120]
[377314813,1754339432575,-397.4,0.00045985,30]
[377314814,1754339432586,-150.0,0.00045985,30]
[377314815,1754339432596,-718.16,0.00045985,30]
[377314816,1754339432605,-150.0,0.00045985,30]
[377314817,1754339432616,-165.39,0.00045985,30]
[377314818,1754339432625,-150.0,0.00045985,30]
[377314819,1754339432634,-300.0,0.00045985,30]
[377314820,1754339432643,-150.0,0.00045985,30]
[377314821,1754339432653,-718.16,0.00045985,30]
[377314822,1754339432662,-150.0,0.00045985,30]
[377314823,1754339432672,-150.0,0.00045985,30]
[377314824,1754339432682,-150.0,0.00045985,30]
[377314825,1754339432691,-224.74,0.00045985,30]
[377314826,1754339432701,-306.54,0.00045985,30]
[377314827,1754339432710,-904.9580125,0.00046,120]
[377314828,1754339432720,-500.0,0.00046,120]
[377314829,1754339432730,-156.88450279,0.00046007,120]
[377314830,1754339432740,-391.0,0.00046246,60]
[377314831,1754339432750,-511.0,0.00046302,10]
[377314832,1754339432759,-676.48510624,0.00046466,120]
[377314833,1754339432769,-152.0,0.000465,120]
[377314834,1754339432778,-29262.29883601,0.000466,2]
[377314835,1754339432788,-500.0,0.000466,10]
[377314836,1754339432798,-5209.9763996,0.00046774,2]
[377314837,1754339432808,-1313.72112197,0.000468,120]
[377314838,1754339432817,-363.86271134,0.000468,120]
[377314839,1754339432827,-310.86,0.00046967,120]
[377314840,1754339432836,-6248.78576185,0.00047007,15]
[377314841,1754339432846,-511.0,0.00047023,10]
[377314842,1754339432855,-319.07,0.00047078,30]
[377314843,1754339432865,-165.06,0.00047078,30]
[377314844,1754339432874,-666.0,0.0004716,3]
[377314845,1754339432884,-895.916,0.00047203,79]
[377314846,1754339432893,-150.94,0.00047203,120]
[377314847,1754339432903,-23900.0,0.00047217,2]